{"text_format":"1","workbook":"xlsx","n_sheets":8,"sheets":["Раздел0","Раздел1","Раздел2","Раздел3","Раздел4","Раздел5","Раздел6","Раздел7"],"not_rendered":{"charts":0,"images":0,"macros":1,"external_links":0,"defined_names":1,"comments":0,"pivot_tables":0},"unopened":[],"bounds":{"document_bytes":16777216,"sheet_cells":100000,"rows_first":2000,"rows_last":500,"rows_between":2000,"halvings":0,"cell_chars":16384,"cell_head_chars":4096},"cells_cut":0,"cells_raw":0,"read":"whole","date_system":"1900"}

{"sheet":"Раздел0","index":0,"n_rows":25,"n_cols":7,"rows_kept":25,"cut":false,"hidden":false,"merged":[[10,1,10,2],[19,0,19,1],[19,2,19,6],[20,0,20,1],[20,2,20,6],[14,0,15,2],[13,0,13,2],[14,3,15,3],[16,0,16,2],[17,0,17,2],[1,0,1,5],[3,0,3,5],[5,0,5,5],[7,0,7,5],[9,0,9,5],[24,4,24,5],[23,0,23,1],[23,2,23,3],[23,4,23,5],[21,0,22,1],[21,2,21,6],[22,2,22,3],[22,4,22,5],[24,0,24,1],[24,2,24,3]]}
[]
["ФЕДЕРАЛЬНОЕ СТАТИСТИЧЕСКОЕ НАБЛЮДЕНИЕ"]
[]
["КОНФИДЕНЦИАЛЬНОСТЬ ГАРАНТИРУЕТСЯ ПОЛУЧАТЕЛЕМ ИНФОРМАЦИИ"]
[]
["Нарушение порядка предоставления первичных статистических данных или несвоевременное предоставление этих данных, \nлибо предоставление недостоверных первичных статистических данных влечет ответственность, установленную \nКодексом Российской Федерации об административных правонарушениях\n"]
[]
[]
[]
["СВЕДЕНИЯ  О  ФИЗИЧЕСКОЙ  КУЛЬТУРЕ  И  СПОРТЕ "]
[null,"по состоянию на 31 декабря 20",null,23,"г."]
[]
[]
["Предоставляют: ",null,null,"Сроки\nпредоставления",null,"Форма № 1-ФК"]
["юридические лица, включая общественные организации, осуществляющие деятельность по физической культуре и спорту:\n- органу местного самоуправления в области физической культуры и спорта ",null,null,"15 января после\nотчетного периода",null,"Приказ Росстата:\nОб утверждении формы\nот 23.06.2023 № 303\nО внесении изменений\n(при наличии)\nот __________ № ___\nот __________ № ___"]
[null,null,null,null,null,"Годовая"]
["орган местного самоуправления в области физической культуры и спорта:\n- органу исполнительной власти субъектов Российской Федерации в области физкультуры и спорта\n",null,null,"25 января после\nотчетного периода"]
["органы исполнительной власти субъектов Российской Федерации в области физкультуры и спорта:\n- Министерству спорта Российской Федерации",null,null,"10 февраля после\nотчетного периода"]
[]
["Наименование отчитывающейся организации",null,"МАУ ДО СШ г. Губахи"]
["Почтовый адрес ",null,"618250, Пермский край, г. Губаха, пер. Мечты 3"]
["Код формы по ОКУД",null,"Код"]
[null,null,"отчитывающейся\nорганизации по ОКПО (для территориально обособленного подразделения юридического лица - идентификационный номер)"]
[1,null,2,null,3,null,4]
["0609402",null,"57447494"]

{"sheet":"Раздел1","index":1,"n_rows":25,"n_cols":14,"rows_kept":25,"cut":false,"hidden":false,"merged":[[0,0,0,13],[2,0,4,0],[2,1,4,1],[2,2,4,2],[2,4,2,11],[1,0,1,13],[2,13,4,13],[3,4,4,4],[3,5,4,5],[3,6,3,7],[2,12,4,12],[3,3,4,3],[3,8,3,10],[3,11,4,11]]}
["Раздел I. Кадры"]
["Код по ОКЕИ: человек - 792"]
["Работники физической\nкультуры и спорта","№\nстроки","Всего",null,"из общей численности работников (гр. 3):",null,null,null,null,null,null,null,"Количество\nвакансий","Количество со-зданных в сфере физиче-ской культуры и спорта рабочих мест"]
[null,null,null,"штатные работники","специалисты,\nвпервые\nприступившие к\nработе в области\nфизической\nкультуры и спорта\nв отчетном\nпериоде","в\nсельской\nместности","со специальным\nобразованием",null,"в возрасте ",null,null,"женщины"]
[null,null,null,null,null,null,"высшим","средним","до 30\nлет","31 - 59\nлет","60 лет и старше"]
[1,2,3,4,5,6,7,8,9,10,11,12,13,14]
["Всего работников физической культуры и спорта  (сумма строк 02, 03, 05, 07, 09, 10-12, 15-17)","01",{"$f":"C8+C9+C11+C13+C15+SUM(C16:C18)+SUM(C21:C23)","v":16},{"$f":"D8+D9+D11+D13+D15+SUM(D16:D18)+SUM(D21:D23)","v":16},0,0,12,4,1,13,2,8,0,0]
["в том числе:\nдошкольных образовательных организаций","02",{"$f":"SUM(I8:K8)","v":0}]
["общеобразовательных организаций","03",{"$f":"SUM(I9:K9)","v":0}]
["из них имеющих \nспортивные клубы","04",0]
["профессиональных образовательных организаций","05",0]
["из них имеющих \nспортивные клубы","06",0]
["образовательных организаций высшего  образования","07",0]
["из них имеющих \nспортивные клубы","08",0]
["организаций дополнительного образования детей, осуществляющих работу по физической культуре и спорту","09",16,16,null,null,12,4,1,13,2,8]
["предприятий, организаций и учреждений",10,0]
["спортивных сооружений",11,0]
["физкультурно-спортивных клубов",12,{"$f":"SUM(I18+J18+K18)","v":0}]
["    из них:\n    фитнес-клубов",13,{"$f":"SUM(I19:K19)","v":0}]
["    детских и подростковых ",14,0]
["аппаратов физкультурно-спортивных организаций всех уровней",15,0]
["органов  управления физической культурой и спортом всех уровней",16,0]
["другие, в том числе адаптивной физической культуры и спорта",17,0]
["Из общего числа  (строка 01) в организациях малого и среднего предпринимательства",18,0]
["Из общего числа  (строка 01) высокопроизводительных  рабочих мест",19,2,2,null,null,2,null,null,2]

{"sheet":"Раздел2","index":2,"n_rows":36,"n_cols":17,"rows_kept":36,"cut":false,"hidden":false,"merged":[[4,4,4,9],[4,10,5,10],[4,11,5,11],[4,12,5,12],[31,1,35,4],[35,6,35,7],[0,0,0,16],[1,0,1,16],[2,0,5,0],[2,1,5,1],[2,2,5,2],[2,3,2,12],[2,13,5,13],[2,14,5,14],[2,15,5,15],[2,16,5,16],[3,3,5,3],[3,4,3,12]]}
["Раздел II. Физкультурно-оздоровительная работа"]
["Коды по ОКЕИ: единица - 642; человек - 792"]
["Учреждения,\nпредприятия,\nобъединения,\nорганизации","№\nстроки","Количество\nучре-ждений,\nпредприя-\nтий,\nорганиза\nций,\nвсего\n(единица)","Численность занимающихся физической культурой и спортом (человек)",null,null,null,null,null,null,null,null,null,"Посещают\nучебные\nзанятия\nпо\nфизической\nкультуре\n(человек)","Численность\nобучающихся,\nотнесенных по\nсостоянию\nздоровья к\nспецмед-\nгруппе\n(человек)","из них\nпосещают занятия\nпо\nфизической\nкультуре\nв\nспецмед-\nгруппе\n(человек)","из\nобщей\nчисленности\nзанимающихся\n(гр. 4) -\nна\nплатной\nоснове"]
[null,null,null,"Всего","из общей численности занимающихся (гр. 4):"]
[null,null,null,null,"в возрасте",null,null,null,null,null,"женщины","в\nсельской\nместности","работающие"]
[null,null,null,null,"3-15 лет","16-17 лет","18-29 лет","30-54 (женщины), 59 (мужчины) лет","55 (женщины), 60 (мужчины) – 79 лет","80 лет и\nстарше"]
[1,2,3,4,5,6,7,8,9,10,11,12,13,14,15,16,17]
["Всего учреждений, предприятий, объединений, организаций (сумма строк 21, 22, 24, 26, 28, 29, 31, 32, 35)",20,{"$f":"SUM(C9,C10,C12,C14,C16,C17,C19,C20,C23)","v":1},{"$f":"SUM(D9,D10,D12,D14,D16,D17,D19,D20,D23)","v":707},{"$f":"SUM(E9,E10,E12,E14,E16,E17,E19,E20,E23)","v":646},26,11,23,1,0,222,{"$f":"SUM(L9,L10,L12,L14,L16,L17,L19,L20,L23)","v":0},35,0,0,0,80]
["в том числе:\nдошкольные\nобразовательные\nорганизации",21,null,{"$f":"SUM(E9)","v":0},null,"X","X","X","X","X",null,null,"X"]
["общеобразовательные\nорганизации",22,null,{"$f":"SUM(E10:G10)","v":0},null,null,null,"X","X","X",null,null,"X"]
["из них имеющие\nспортивные клубы",23,null,{"$f":"SUM(E11:G11)","v":0},null,null,null,"X","X","X",null,null,"X","X","X","X"]
["профессиональные обра-зовательные организации",24,null,{"$f":"SUM(E12:G12)","v":0},null,null,null,"X","X","X"]
["из них имеющие\nспортивные клубы",25,null,{"$f":"SUM(E13:G13)","v":0},null,null,null,"X","X","X",null,null,null,"X","X","X"]
["образовательные\nорганизации высшего\nобразования",26,null,{"$f":"SUM(E14:H14)","v":0},null,null,null,null,"X","X"]
["из них имеющие\nспортивные клубы",27,null,{"$f":"SUM(E15:J15)","v":0},null,null,null,null,"X","X",null,null,null,"X","X","X"]
["организации дополнительного  образования детей",28,1,{"$f":"SUM(E16:H16)","v":672},646,26,null,null,"X","X",207,null,null,"X","X","X",45]
["предприятия,\nучреждения,\nорганизации",29,null,{"$f":"SUM(E17:J17)","v":0},null,null,null,null,null,null,null,null,null,"X","X","X"]
["из них имеющие\nспортивные клубы",30,null,{"$f":"SUM(E18:J18)","v":0},null,null,null,null,null,null,null,null,null,"X","X","X"]
["учреждения и\nорганизации при\nспортивных сооружениях",31,null,{"$f":"SUM(E19:J19)","v":35},null,null,11,23,1,null,15,null,35,"X","X","X",35]
["физкультурно-спортивные клубы",32,null,{"$f":"SUM(E20:J20)","v":0},null,null,null,null,null,null,null,null,null,"X","X","X"]
["        из них:\n        фитнес-клубы\n",33,null,{"$f":"SUM(E21:J21)","v":0},null,null,null,null,null,null,null,null,null,"X","X","X"]
["        детские и \n        подростковые",34,null,{"$f":"SUM(E22:G22)","v":0},null,null,null,"X","X","X",null,null,null,"X","X","X"]
["другие учреждения и\nорганизации, в том\nчисле адаптивной\nфизической культуры и\nспорта",35,null,{"$f":"SUM(E23:J23)","v":0},null,null,null,null,null,null,null,null,null,"X","X","X"]
["Из общего числа (строка 20) - физкультурно-спортивные клубы, их объединения и организации, осуществляющие подготовку населения к выполнению нормативов испытаний (тестов) комплекса ГТО",36,null,{"$f":"SUM(E24:J24)","v":0},null,null,null,null,null,null,null,null,null,"X","X","X"]
["Из общего числа (строка 20) - организации, развивающие различные формы хореографического искусства",37,null,{"$f":"SUM(E25:J25)","v":0},null,null,null,null,null,null,null,null,null,"X","X","X"]
["Из общего числа \n(строка 20) - в форме малых предприятий\n",38,null,{"$f":"SUM(E26:J26)","v":0},null,null,null,null,null,null,null,null,null,"X","X","X"]
["Из общего числа \n(строка 20) - в сельской местности\n",39,null,{"$f":"SUM(E27:J27)","v":0},null,null,null,null,null,null,null,{"$f":"SUM(L9,L10,L12,L14,L16,L17,L19,L20,L23)","v":0}]
[]
[]
[]
[]
["Справочно:","Количество физкультурных и спортивных мероприятий, проведенных организацией самостоятельно в отчетный период"]
[]
[]
[]
[null,null,null,null,null,"(40)",19]

{"sheet":"Раздел3","index":3,"n_rows":46,"n_cols":14,"rows_kept":46,"cut":false,"hidden":false,"merged":[[3,8,4,8],[3,9,4,9],[3,10,4,10],[3,11,4,11],[45,2,45,10],[43,3,43,10],[0,0,0,13],[1,0,1,13],[2,0,4,0],[2,1,4,1],[2,2,2,6],[2,7,2,9],[2,10,2,11],[2,12,4,12],[2,13,4,13],[3,2,4,2],[3,3,3,6],[3,7,4,7]]}
["Раздел III. Спортивная инфраструктура"]
["Коды по ОКЕИ: единица - 642; человек - 792"]
["Наименование\nспортивного\nсооружения","№\nстроки","Количество спортсооружений (единица) ",null,null,null,null,"Из общего числа спортивных\nсооружений (из гр. 3)",null,null,"Единовременная пропускная способность (человек)",null,"Загруженность","Мощность"]
[null,null,"Всего","в том числе по формам\nсобственности:",null,null,null,"для\nспортивной\nподготовки и\nпроведения\nсоревнований","находящиеся в аварийном состоянии","в\nсельской\nместности","Всего","из них в сельской местности"]
[null,null,null,"федера\nльной","субъектов Российской Федерации","муниц\nипальной","другой"]
[1,2,3,4,5,6,7,8,9,10,11,12,13,14]
["Всего спортивных сооружений с учетом объектов городской и рекреационной инфраструктуры, приспособленных для занятий физической культурой и спортом (сумма строк 42, 71)",41,{"$f":"SUM(C8,C37)","v":8},{"$f":"SUM(D8,D37)","v":0},0,{"$f":"SUM(F8,F37)","v":8},0,5,0,0,{"$f":"SUM(K8,K37)","v":145},{"$f":"SUM(L8,L37)","v":0},202488,266109]
["Всего спортивных сооружений (сумма строк  43, 44, 47, 52, 53, 56, 57, 63, 64, 65, 69, 70)",42,{"$f":"SUM(C9:C10,C13,C18,C19,C22,C23,C29:C31,C35:C36)","v":5},{"$f":"SUM(D9:D10,D13,D18,D19,D22,D23,D29:D31,D35:D36)","v":0},0,5,{"$f":"SUM(G9:G10,G13,G18,G19,G22,G23,G29:G31,G35:G36)","v":0},5,0,0,93,0,202488,266109]
["в том числе:\nСтадионы с трибунами на 1500 мест и более",43,{"$f":"SUM(D9:G9)","v":0}]
["Плоскостные спортивные сооружения – всего",44,{"$f":"SUM(D10:G10)","v":0}]
["- из них футбольные поля",45,0]
["Площадь плоскостных спортивных сооружений (м2) ",46,0,null,null,null,null,null,null,null,"X","X","X","X"]
["Спортивные залы - всего",47,1,null,null,1,null,1,null,null,15,null,42900,43710]
["из них размером:\n- (42 х 24 м)",48,0]
["- (36 х 18 м), (30 х 18 м),\n  (30 х 15 м)",49,0]
["- (24 х 12 м) и (18 х 9 м)",50,1,null,null,1,null,1,null,null,15,null,42900,43710]
["Площадь спортивных залов (м2)",51,0,null,null,null,null,null,null,null,"X","X","X","X"]
["Крытые спортивные объекты с искусственным льдом",52,1,null,null,1,null,1,null,null,37,null,101348,148555]
["Манежи - всего ",53,0]
["из них:\n- легкоатлетические",54,0]
["- футбольные",55,0]
["Велотреки, велодромы",56,0]
["Плавательные бассейны - всего",57,0]
["    из них:\n   - 50 - метровые",58,0]
["   - 25 - метровые",59,0]
["   - для прыжков в воду",60,0]
["Площадь зеркала воды плавательных бассейнов (м2)",61,0,null,null,null,null,null,null,null,"X","X","X","X"]
["Из общего числа бассейнов \n(строка 57) - крытые",62,0]
["Лыжные базы",63,0]
["Биатлонные комплексы",64,0]
["Сооружения для стрелковых видов спорта – всего (сумма строк 66-68)",65,{"$f":"SUM(C32:C34)","v":0},{"$f":"SUM(D32:D34)","v":0},{"$f":"SUM(E32:E34)","v":0},{"$f":"SUM(F32:F34)","v":0},{"$f":"SUM(G32:G34)","v":0},0,0,0,0,0,0,0]
["в том числе:\n- тиры",66,0]
["- стрельбища",67,0]
["- стенды",68,0]
["Гребные базы и каналы",69,0]
["Другие спортивные сооружения",70,3,null,null,3,null,3,null,null,41,null,58240,73844]
["Объекты городской и рекреационной инфраструктуры, приспособленные для занятий физической культурой и спортом - всего (сумма строк 72-76)",71,3,{"$f":"SUM(D38:D42)","v":0},{"$f":"SUM(E38:E42)","v":0},{"$f":"SUM(F38:F42)","v":3},{"$f":"SUM(G38:G42)","v":0},"Х","Х",{"$f":"SUM(J38:J42)","v":0},{"$f":"SUM(K38:K42)","v":52},{"$f":"SUM(L38:L42)","v":0},"Х","Х"]
["в том числе:\n-универсальная игровая площадка",72,0,null,null,null,null,"Х","Х",null,null,null,"Х","Х"]
["- дистанция (велодорожка)",73,0,null,null,null,null,"Х","Х",null,null,null,"Х","Х"]
["- спот (плаза начального уровня)",74,0,null,null,null,null,"Х","Х",null,null,null,"Х","Х"]
["- площадка с тренажерами",75,3,null,null,3,null,"Х","Х",null,52,null,"Х","Х"]
["- каток (сезонный)",76,0,null,null,null,null,"Х","Х",null,null,null,"Х","Х"]
[]
[null,null,"Справочно:","Количество заключенных в отчетный период соглашений о государственно-частном (муниципально-частном) партнерстве",null,null,null,null,null,null,null,"(77)"]
[]
[null,null,"Количество заключенных в отчетный период концессионных соглашений",null,null,null,null,null,null,null,null,"(78)"]

{"sheet":"Раздел4","index":4,"n_rows":32,"n_cols":9,"rows_kept":32,"cut":false,"hidden":false,"merged":[[30,1,31,4],[31,6,31,7],[0,0,0,8],[1,0,1,8],[2,0,5,0],[2,1,5,1],[2,2,2,5],[2,6,5,6],[2,7,5,7],[2,8,5,8],[3,2,5,2],[3,3,3,5],[4,3,5,3],[4,4,4,5],[27,1,28,4],[28,6,28,7],[17,1,19,4],[19,6,19,7],[21,1,22,4],[22,6,22,7],[24,1,25,4],[25,6,25,7]]}
["Раздел IV. Финансирование физической культуры и спорта"]
["Код по ОКЕИ: тысяча рублей - 384\n(с одним десятичным знаком)"]
["Статьи расходов","№\nстроки","Фактически выделено бюджетных средств ",null,null,null,"Получено из\nвнебюджетных\nисточников","Всего\nизрасходовано на\nразвитие\nфизической\nкультуры\nи спорта","Из гр. 8 по разделу\n1100 \"Физическая\nкультура и спорт\" бюджетной классификации Российской Федерации"]
[null,null,"Всего","в том числе"]
[null,null,null,"из\nфедерального\nбюджета","из консолидированного\nбюджета субъекта\nРоссийской Федерации:"]
[null,null,null,null,"бюджет\nсубъекта \nРоссийской\nФедерации","бюджет\nмуниципального\nобразования"]
[1,2,3,4,5,6,7,8,9]
["Расходы – всего (сумма строк 80-87)",79,{"$f":"SUM(C9:C16)","v":24872.300000000003},{"$f":"SUM(D9:D16)","v":0},0,24872.300000000003,10448,{"$f":"SUM(H9:H16)","v":35320.300000000003},35320.300000000003]
["в том числе:\nОрганизация и проведение спортивных мероприятий",80,{"$f":"SUM(D9:F9)","v":605},null,null,605,1293.2,{"$f":"SUM(G9,C9)","v":1898.2},1898.2]
["Организация и проведение физкультурных и массовых спортивных мероприятий",81,{"$f":"SUM(D10:F10)","v":111.8},null,null,111.8,null,111.8,111.8]
["Приобретение спортивного\nоборудования и инвентаря",82,{"$f":"SUM(D11:F11)","v":0},null,null,null,111,111,111]
["Капитальный ремонт\nспортсооружений",83,0,null,null,null,null,0]
["Инвестиции на реконструкцию и строительство спортивных\nсооружений",84,653,null,null,653,221.5,874.5,874.5]
["Заработная плата работников физической культуры и спорта",85,12917.7,null,null,12917.7,3375.6,16293.300000000001,16293.3]
["Cодержание спортивных\nсооружений",86,6797.9,null,null,6797.9,1855.2,8653.1,8653.1]
["Другие",87,3786.9,null,null,3786.9,3591.5,7378.4,7378.4]
[]
["Справочно:","Поступило средств от предоставления  платных услуг  от занятий в клубах, секциях, группах  физкультурно-оздоровительной направленности"]
[]
[null,null,null,null,null,"(88)",3381.4920000000002,null,"тыс. руб."]
[]
[null,"Поступило средств от проведения  спортивно-зрелищных мероприятий"]
[null,null,null,null,null,"(89)",250.55,null,"тыс. руб."]
[]
[null,"Из гр. 9 израсходовано по подразделу 02 «Массовый спорт»"]
[null,null,null,null,null,"(90)",null,null,"тыс. руб."]
[]
[null,"Из гр. 9 израсходовано по подразделу 03  «Спорт высших достижений»"]
[null,null,null,null,null,"(91)",null,null,"тыс. руб."]
[]
[null,"Из гр. 9 израсходовано на финансирование профессионального спорта"]
[null,null,null,null,null,"(92)",null,null,"тыс. руб."]

{"sheet":"Раздел5","index":5,"n_rows":190,"n_cols":19,"rows_kept":190,"cut":false,"hidden":false,"merged":[[2,18,5,18],[2,14,2,16],[3,14,5,14],[3,15,4,16],[3,7,3,10],[2,17,5,17],[0,0,0,16],[1,0,1,16],[2,0,5,0],[2,1,5,1],[2,2,2,10],[4,5,4,6],[4,8,4,10],[3,4,3,6],[3,11,5,11],[4,7,5,7],[2,11,2,13],[3,3,5,3],[3,12,4,13],[4,4,5,4],[3,2,5,2]]}
["Раздел V. Развитие видов спорта и двигательной активности"]
["Код по ОКЕИ: человек - 792"]
["Виды спорта","№\nстроки","Численность \nзанимающихся и их квалификация \n(человек)",null,null,null,null,null,null,null,null,"Число спортивных судей",null,null,"Число штатных тренеров, \nтренеров-преподавателей",null,null,"всего","женщин"]
[null,null,"Всего","из них\nженщины","Спортивные разряды",null,null,"Спортивные звания",null,null,null,"Всего","из них:",null,"Всего","Со специальным образованием"]
[null,null,null,null,"Всего","из них:",null,"Всего","из них:"]
[null,null,null,null,null,"1 разряд","КМС",null,"МС","МСМК","ЗМС",null,"1 категории","всероссийской категории",null,"Высшим","Средним"]
[1,2,3,4,5,6,7,8,9,10,11,12,13,14,15,16,17]
["Всего видов спорта (сумма строк 94-204, 206-237, 238, 241, 250, 269, 275)",93,{"$f":"SUM(C9:C119,C121:C152,C153,C156,C165,C184,C190)","v":707},222,139,7,3,0,0,0,0,16,3,0,12,8,4,{"$f":"Раздел2!D8","v":707},{"$f":"Раздел2!K8","v":222}]
["в том числе:\nАвиамодельный спорт",94,null,null,null,null,null,{"$f":"SUM(I9+J9+K9)","v":0}]
["Автомобильный спорт",95,null,null,null,null,null,0]
["Айкидо",96,null,null,null,null,null,0]
["Акробатический рок-н-ролл",97,null,null,null,null,null,0]
["Альпинизм",98,null,null,null,null,null,0]
["Американский футбол",99,null,null,null,null,null,0]
["Армреслинг",100,null,null,null,null,null,0]
["Бадминтон",101,null,null,null,null,null,0]
["Баскетбол",102,null,null,null,null,null,0]
["Бейсбол",103,null,null,null,null,null,0]
["Биатлон",104,null,null,null,null,null,0]
["Бильярдный спорт",105,null,null,null,null,null,0]
["Бобслей",106,null,null,null,null,null,0]
["Бодибилдинг",107,null,null,null,null,null,0]
["Бокс",108,80,null,3,null,null,0,null,null,null,10,null,null,2,1,1]
["Борьба на поясах",109,null,null,null,null,null,0]
["Боулинг",110,null,null,null,null,null,0]
["Велосипедный спорт",111,null,null,null,null,null,0]
["Вертолетный спорт",112,null,null,null,null,null,0]
["Водно-моторный спорт",113,null,null,null,null,null,0]
["Водное поло",114,null,null,null,null,null,0]
["Воднолыжный спорт ",115,null,null,null,null,null,0]
["Воздухоплавательный спорт",116,null,null,null,null,null,0]
["Воздушно-силовая атлетика (воркаут)",117,null,null,null,null,null,0]
["Волейбол ",118,null,null,null,null,null,0]
["Восточное боевое единоборство",119,null,null,null,null,null,0]
["Всестилевое каратэ",120,null,null,null,null,null,0]
["Гандбол",121,null,null,null,null,null,0]
["Гиревой спорт ",122,null,null,null,null,null,0]
["Го ",123,null,null,null,null,null,0]
["Гольф",124,null,null,null,null,null,0]
["Гонки с препятствиями",125,null,null,null,null,null,{"$f":"SUM(I40+J40+K40)","v":0}]
["Горнолыжный спорт",126,30,10,null,null,null,0,null,null,null,null,null,null,1,1]
["Городошный спорт",127,null,null,null,null,null,0]
["Гребля на байдарках и каноэ ",128,null,null,null,null,null,0]
["Гребной слалом",129,null,null,null,null,null,0]
["Гребной спорт ",130,null,null,null,null,null,0]
["Дартс",131,null,null,null,null,null,0]
["Джиу-джитсу",132,null,null,null,null,null,0]
["Дзюдо",133,null,null,null,null,null,0]
["Ездовой спорт",134,null,null,null,null,null,0]
["Каратэ",135,115,53,null,null,null,0,null,null,null,null,null,null,2,2]
["Кендо",136,null,null,null,null,null,0]
["Керлинг",137,null,null,null,null,null,0]
["Кикбоксинг",138,null,null,null,null,null,0]
["Кинологический спорт",139,null,null,null,null,null,0]
["Киокусинкай",140,null,null,null,null,null,0]
["Киокушин",141,null,null,null,null,null,{"$f":"SUM(I56+J56+K56)","v":0}]
["Компьютерный спорт",142,null,null,null,null,null,0]
["Конный спорт",143,null,null,null,null,null,0]
["Конькобежный спорт",144,null,null,null,null,null,0]
["Кореш",145,null,null,null,null,null,0]
["Кудо",146,null,null,null,null,null,0]
["Лапта",147,null,null,null,null,null,0]
["Легкая атлетика",148,null,null,null,null,null,0]
["Лыжное двоеборье",149,null,null,null,null,null,0]
["Лыжные гонки",150,147,58,37,3,null,0,null,null,null,4,3,null,3,2,1]
["Морское многоборье",151,null,null,null,null,null,0]
["Мотоциклетный спорт ",152,null,null,null,null,null,0]
["Муатай",153,null,null,null,null,null,{"$f":"SUM(I68+J68+K68)","v":0}]
["Настольный теннис",154,null,null,null,null,null,0]
["Парашютный спорт",155,null,null,null,null,null,0]
["Парусный спорт",156,null,null,null,null,null,0]
["Пауэрлифтинг",157,null,null,null,null,null,0]
["Перетягивание каната",158,null,null,null,null,null,0]
["Пилонный спорт",159,null,null,null,null,null,{"$f":"SUM(I74+J74+K74)","v":0}]
["Плавание",160,40,13,34,4,3,0,null,null,null,2,null,null,1,1]
["Планерный спорт",161,null,null,null,null,null,{"$f":"SUM(I76+J76+K76)","v":0}]
["Подводный спорт",162,null,null,null,null,null,0]
["Полиатлон",163,null,null,null,null,null,0]
["Практическая стрельба",164,null,null,null,null,null,0]
["Прыжки в воду",165,null,null,null,null,null,0]
["Прыжки на батуте",166,null,null,null,null,null,0]
["Прыжки на лыжах с трамплина",167,null,null,null,null,null,0]
["Пулевая стрельба",168,null,null,null,null,null,0]
["Пэйнтбол",169,null,null,null,null,null,0]
["Радиоспорт",170,null,null,null,null,null,0]
["Рафтинг",171,null,null,null,null,null,0]
["Регби",172,null,null,null,null,null,0]
["Роллер спорт",173,null,null,null,null,null,0]
["Роуп скиппинг (спортивная скакалка)",174,null,null,null,null,null,{"$f":"SUM(I89+J89+K89)","v":0}]
["Рукопашный бой ",175,null,null,null,null,null,0]
["Рыболовный спорт",176,null,null,null,null,null,0]
["Сават",177,null,null,null,null,null,0]
["Самбо",178,null,null,null,null,null,0]
["Самолетный спорт",179,null,null,null,null,null,0]
["Санный спорт",180,null,null,null,null,null,0]
["Северное многоборье",181,null,null,null,null,null,0]
["Серфинг",182,null,null,null,null,null,0]
["Синхронное плавание",183,null,null,null,null,null,0]
["Скалолазание",184,null,null,null,null,null,0]
["Сквош",185,null,null,null,null,null,0]
["Скейтбординг",186,null,null,null,null,null,0]
["Смешанное боевое единоборство (ММА)",187,null,null,null,null,null,0]
["Сноуборд",188,null,null,null,null,null,0]
["Современное пятиборье ",189,null,null,null,null,null,0]
["Софтбол",190,null,null,null,null,null,0]
["Спорт сверхлегкой авиации",191,null,null,null,null,null,0]
["Спортивная борьба",192,null,null,null,null,null,{"$f":"SUM(I107+J107+K107)","v":0}]
["Спортивно-прикладное собаководство",193,null,null,null,null,null,{"$f":"SUM(I108+J108+K108)","v":0}]
["Спортивное метание ножа",194,null,null,null,null,null,{"$f":"SUM(I109+J109+K109)","v":0}]
["Спорт глухих",195,null,null,null,null,null,{"$f":"SUM(I110+J110+K110)","v":0}]
["Спорт лиц с интеллектуальными нарушениями",196,null,null,null,null,null,{"$f":"SUM(I111+J111+K111)","v":0}]
["Спорт лиц с поражением ОДА",197,null,null,null,null,null,{"$f":"SUM(I112+J112+K112)","v":0}]
["Спорт слепых",198,null,null,null,null,null,0]
["Спортивная акробатика",199,null,null,null,null,null,0]
["Спортивная аэробика ",200,30,30,12,null,null,0,null,null,null,null,null,null,1,null,1]
["Спортивная гимнастика",201,null,null,null,null,null,0]
["Спортивное ориентирование",202,null,null,null,null,null,0]
["Спортивное программирование",203,null,null,null,null,null,{"$f":"SUM(I118+J118+K118)","v":0}]
["Спортивный туризм - всего",204,null,null,null,null,null,0]
[" в том числе: Северная (скандинавская) ходьба",205,null,null,null,null,null,0]
["Стендовая стрельба",206,null,null,null,null,null,0]
["Страйкбол",207,null,null,null,null,null,{"$f":"SUM(I122+J122+K122)","v":0}]
["Стрельба из арбалета",208,null,null,null,null,null,0]
["Стрельба из лука",209,null,null,null,null,null,0]
["Судомодельный спорт",210,null,null,null,null,null,0]
["Сумо",211,null,null,null,null,null,0]
["Танцевальный спорт",212,null,null,null,null,null,0]
["Теннис",213,null,null,null,null,null,0]
["Триатлон",214,null,null,null,null,null,0]
["Тхэквондо",215,null,null,null,null,null,0]
["Тхэквондо ГТФ",216,null,null,null,null,null,{"$f":"SUM(I131+J131+K131)","v":0}]
["Тхэквондо ИТФ",217,null,null,null,null,null,0]
["Тхэквондо МТФ",218,null,null,null,null,null,{"$f":"SUM(I133+J133+K133)","v":0}]
["Тяжелая атлетика",219,null,null,null,null,null,0]
["Универсальный бой",220,null,null,null,null,null,0]
["Ушу",221,null,null,null,null,null,0]
["Фехтование",222,null,null,null,null,null,0]
["Фигурное катание на коньках ",223,45,43,11,null,null,0]
["Фитнес-аэробика ",224,15,15,null,null,null,0]
["Флорбол ",225,null,null,null,null,null,0]
["Фристайл",226,null,null,null,null,null,0]
["Функциональное многоборье",227,null,null,null,null,null,0]
["Футбол",228,46,null,null,null,null,0,null,null,null,null,null,null,1,null,1]
["Футбол лиц с заболеванием ЦП",229,null,null,null,null,null,{"$f":"SUM(I144+J144+K144)","v":0}]
["Хоккей",230,159,null,42,null,null,0,null,null,null,null,null,null,1,1]
["Хоккей на траве",231,null,null,null,null,null,0]
["Хоккей с мячом",232,null,null,null,null,null,0]
["Художественная гимнастика",233,null,null,null,null,null,0]
["Чир спорт",234,null,null,null,null,null,{"$f":"SUM(I149+J149+K149)","v":0}]
["Шахматы",235,null,null,null,null,null,0]
["Шашки",236,null,null,null,null,null,0]
["Эстетическая гимнастика",237,null,null,null,null,null,0]
["Прикладные виды спорта – всего\n(сумма строк 239-240)",238,{"$f":"SUM(C154:C155)","v":0},{"$f":"SUM(D154:D155)","v":0},0,0,0,0,0,0,0,0,0,0,0,0,0]
["в том числе:\nвоенно-прикладные",239,null,null,null,null,null,0]
["служебно-прикладные",240,null,null,null,null,null,0]
["Национальные виды спорта – всего \n(сумма строк 242-249)",241,{"$f":"SUM(C157:C164)","v":0},{"$f":"SUM(D157:D164)","v":0},0,0,0,0,0,0,0,0,0,0,0,0,0]
["в том числе: \nгонки на охотничьих лыжах\n",242,null,null,null,null,null,{"$f":"SUM(I157+J157+K157)","v":0}]
["керешу",243,null,null,null,null,null,0]
["мас-рестлинг",244,null,null,null,null,null,0]
["таврели",245,null,null,null,null,null,0]
["хапсагай",246,null,null,null,null,null,0]
["хуреш",247,null,null,null,null,null,0]
["шодсанлат",248,null,null,null,null,null,0]
["якутские национальные прыжки",249,null,null,null,null,null,0]
["Виды спорта, признанные в Российской Федерации (сумма строк 251-268)",250,{"$f":"SUM(C166:C183)","v":0},0,0,0,0,0,0,0,0,0,0,0,0,0,0]
["в том числе:\nавиационные гонки\n",251,null,null,null,null,null,{"$f":"SUM(I166+J166+K166)","v":0}]
["Автомодельный спорт",252,null,null,null,null,null,{"$f":"SUM(I167+J167+K167)","v":0}]
["Боулспорт",253,null,null,null,null,null,0]
["Водно-спасательное многоборье",254,null,null,null,null,null,0]
["Зимнее плавание",255,null,null,null,null,null,{"$f":"SUM(I170+J170+K170)","v":0}]
["Капоэйра",256,null,null,null,null,null,0]
["Крикет",257,null,null,null,null,null,0]
["Микрофутзал",258,null,null,null,null,null,0]
["Нарды",259,null,null,null,null,null,0]
["Падел",260,null,null,null,null,null,0]
["Регбол",261,null,null,null,null,null,0]
["Силовой экстрим",262,null,null,null,null,null,{"$f":"SUM(I177+J177+K177)","v":0}]
["Спортивная йога",263,null,null,null,null,null,0]
["Спортивный бридж",264,null,null,null,null,null,{"$f":"SUM(I179+J179+K179)","v":0}]
["Стрельба на дальние дистанции",265,null,null,null,null,null,0]
["Фиджитал спорт (функционально-цифровой спорт)",266,null,null,null,null,null,{"$f":"SUM(I181+J181+K181)","v":0}]
["Флаинг диск",267,null,null,null,null,null,0]
["Хапкидо",268,null,null,null,null,null,{"$f":"SUM(I183+J183+K183)","v":0}]
["Иные виды двигательной активности (сумма строк 270-274)",269,{"$f":"SUM(C185:C189)","v":0},{"$f":"SUM(D185:D189)","v":0},"X","X","X","X","X","X","X","X","X","X",{"$f":"SUM(O185:O189)","v":0},{"$f":"SUM(P185:P189)","v":0},{"$f":"SUM(Q185:Q189)","v":0}]
["в том числе:\nхореография (танцы)",270,null,null,"X","X","X","X","X","X","X","X","X","X"]
["вело и пешие маршруты",271,null,null,"X","X","X","X","X","X","X","X","X","X"]
["моржевание",272,null,null,"X","X","X","X","X","X","X","X","X","X"]
["беговелы, самокаты",273,null,null,"X","X","X","X","X","X","X","X","X","X"]
["крокет",274,null,null,"X","X","X","X","X","X","X","X","X","X"]
["Другие ",275,null,null,null,null,null,{"$f":"SUM(I190+J190+K190)","v":0}]

{"sheet":"Раздел6","index":6,"n_rows":26,"n_cols":9,"rows_kept":26,"cut":false,"hidden":false,"merged":[[0,0,0,8],[1,0,1,8],[2,0,5,0],[2,1,5,1],[2,2,5,2],[2,3,5,3],[2,4,5,4],[2,5,2,8],[3,5,5,5],[3,6,3,8],[4,6,5,6],[4,7,4,8]]}
["Раздел VI. Социально ориентированные некоммерческие организации (СОНКО)"]
["Коды по ОКЕИ: единица - 642; человек – 792; тысяча рублей – 384 (с одним десятичным знаком)"]
["Вид общественно полезной услуги в области физической культуры и массового спорта","№ строки","Количество СОНКО, оказывающих общественно полезные услуги в области физической культуры и массового спорта, ед","Количество СОНКО, получивших государственную поддержку на оказание общественно полезных услуг населению, ед","Количество человек, получивших услугу","Фактически выделено бюджетных средств на оказание услуги посредством СОНКО, тыс. руб"]
[null,null,null,null,null,"Всего","в том числе"]
[null,null,null,null,null,null,"из федерального бюджета","из консолидированного бюджета субъекта Российской Федерации:"]
[null,null,null,null,null,null,null,"бюджет \nсубъекта Российской Федерации","бюджет муниципального образования"]
[1,2,3,4,5,6,7,8,9]
["Cпортивная подготовка по спорту глухих",276,null,null,null,{"$f":"SUM(G8:I8)","v":0}]
["Cпортивная подготовка по спорту лиц с интеллектуальными нарушениями",277,null,null,null,{"$f":"SUM(G9:I9)","v":0}]
["Cпортивная подготовка по спорту лиц с поражением опорно-двигательного аппарата",278,null,null,null,0]
["Cпортивная подготовка по спорту слепых",279,null,null,null,0]
["Cпортивная подготовка по футболу лиц с заболеванием церебральным параличом",280,null,null,null,0]
["Пропаганда физической культуры, спорта и здорового образа жизни",281,null,null,null,0]
["Проведение занятий физкультурно-спортивной направленности по месту проживания граждан",282,null,null,null,0]
["Организация и проведение официальных спортивных мероприятий",283,null,null,null,0]
["Участие в организации официальных спортивных мероприятий",284,null,null,null,0]
["Организация и проведение официальных физкультурных (физкультурно-оздоровительных) мероприятий",285,null,null,null,0]
["Обеспечение доступа к спортивным объектам",286,null,null,null,0]
["Организация развития национальных видов спорта",287,null,null,null,0]
["Организация и проведение физкультурных и спортивных мероприятий в рамках Всероссийского физкультурно-спортивного комплекса «Готов к труду и обороне» (ГТО) (за исключением тестирования выполнения нормативов испытаний комплекса ГТО)",288,null,null,null,0]
["Организация и проведение мероприятий по военно-прикладным видам спорта",289,null,null,null,0]
["Организация и проведение мероприятий по служебно-прикладным видам спорта",290,null,null,null,0]
["Организация и проведение всероссийских смотров физической подготовки граждан допризывного и призывного возрастов к военной службе",291,null,null,null,0]
["Организация и проведение спортивно-оздоровительной работы по развитию физической культуры и спорта среди различных групп населения",292,null,null,null,0]
["Организация и обеспечение экспериментальной и инновационной деятельности в области физкультуры и спорта",293,null,null,null,0]
["Всего (сумма строк 276-293)",294,{"$f":"SUM(C8:C25)","v":0},{"$f":"SUM(D8:D25)","v":0},0,0,0,0,0]

{"sheet":"Раздел7","index":7,"n_rows":26,"n_cols":4,"rows_kept":26,"cut":false,"hidden":false,"merged":[[0,0,0,2],[1,0,1,2],[16,0,21,0]]}
["Раздел VII. Спортивное мастерство"]
["Код по ОКЕИ: человек - 792"]
["Виды спорта ","№ строки","Всего"]
[1,2,3]
["Присвоено спортивных званий - всего (сумма строк 296-298) ",295,{"$f":"SUM(C6:C8)","v":0}]
["в том числе:\n    - мастер спорта",296]
["    - мастер спорта международного класса и Гроссмейстер России",297]
["    - заслуженный  мастер спорта",298]
["Присвоено спортивных разрядов",299,93]
["из них:\n    - кандидат в мастера спорта",300,2]
["    - I разряд",301,3]
["Присвоено званий – заслуженный тренер России",302]
["Присвоено званий – заслуженный работник физической культуры Российской Федерации",303]
["Присуждены другие государственные почетные звания и награды",304]
["Присуждены почетные звания и награды \nсубъекта Российской Федерации",305]
[]
["Должностное лицо,\nответственное за предоставление\nпервичных статистических данных (лицо,\nуполномоченное предоставлять\nпервичные статистические данные  от\nимени юридического лица)"]
[]
[]
[]
[]
[null,"директор ","К.В. Макаров "]
[null,"(должность)","(Ф.И.О.)","(подпись)"]
[]
[null,83424833307,"40675@bk.ru","2024-01-09"]
[null,"(номер контактного \nтелефона)","E-mail","(дата составления\nдокумента)"]